fUSD/lending_fUSD_20260205
["ID","MTS","AMOUNT","RATE_DAILY","PERIOD"]
[404585610,1770315047369,-1205.0,0.00017434,2]
[404585611,1770315047378,-3254.0,0.00017434,2]
[404585612,1770315047386,-6581.0,0.00017434,2]
[404585613,1770315047396,-412.0,0.00017434,2]
[404585614,1770315047406,-301.0,0.00017457,2]
[404585615,1770315047589,-455.0,0.00017499,2]
[404585616,1770315047600,-553.0,0.00017505,2]
[404585617,1770315047621,-3321.03986303,0.00017529,2]
[404585618,1770315047633,-1000.0,0.00017534,2]
[404585619,1770315047646,-151.0,0.00017549,2]
[404585620,1770315047656,-65066.5377448,0.00017552,2]
[404585621,1770315047667,-153.52,0.00017568,2]
[404585622,1770315047677,-455.0,0.00017575,2]
[404585623,1770315047687,-455.0,0.00017643,2]
[404585624,1770315047697,-455.0,0.00017654,2]
[404585625,1770315047712,-553.0,0.00017656,2]
[404585626,1770315047722,-7788.94554139,0.00017671,2]
[404585627,1770315047736,-3137.95520001,0.00017671,2]
[404585628,1770315047748,-376.09715932,0.00017671,2]
[404585629,1770315047767,-2719.71275266,0.00017671,2]
[404585630,1770315047790,-1053.3365989,0.00017671,2]
[404585632,1770315124780,154.66144465,0.00014462,2]
[404585634,1770315149004,157.79972235,0.00014462,2]
[404585635,1770315157702,500.0,0.0001456,2]
[404585636,1770315157744,500.0,0.0001456,2]
[404585637,1770315157801,500.0,0.0001456,2]
[404585638,1770315157832,500.0,0.0001456,2]
[404585639,1770315157903,500.0,0.0001456,2]
[404585640,1770315157985,300.0,0.0001456,2]
[404585641,1770315165616,160.2005984,0.00014462,2]
[404585642,1770315169548,463.45715495,0.0001456,2]
[404585643,1770315169584,500.0,0.0001456,2]
[404585644,1770315169625,500.0,0.0001456,2]
[404585645,1770315169665,263.89107965,0.0001456,2]
[404585646,1770315169688,236.10892035,0.0001456,2]
[404585647,1770315169728,500.0,0.0001456,2]
[404585648,1770315169768,500.0,0.0001456,2]
[404585649,1770315169816,500.0,0.0001456,2]
[404585650,1770315169858,500.0,0.0001456,2]
[404585651,1770315169892,500.0,0.0001456,2]
[404585652,1770315169929,500.0,0.0001456,2]
[404585653,1770315169981,500.0,0.0001456,2]
[404585654,1770315170021,500.0,0.0001456,2]
[404585655,1770315170063,500.0,0.0001456,2]
[404585656,1770315170105,263.90107965,0.0001456,2]
[404585657,1770315170128,236.09892035,0.0001456,2]
[404585658,1770315170162,500.0,0.0001456,2]
[404585659,1770315170227,500.0,0.0001456,2]
[404585660,1770315170270,500.0,0.0001456,2]
[404585661,1770315170342,500.0,0.0001456,2]
[404585662,1770315170391,503.24017739,0.0001456,2]
[404585663,1770315170424,500.0,0.0001456,2]
[404585664,1770315170458,500.0,0.0001456,2]
[404585665,1770315170491,500.0,0.0001456,2]
[404585666,1770315170523,500.0,0.0001456,2]
[404585667,1770315170554,260.67090226,0.0001456,2]
[404585668,1770315170578,239.32909774,0.0001456,2]
[404585669,1770315170634,500.0,0.0001456,2]
[404585670,1770315170668,500.0,0.0001456,2]
[404585671,1770315170727,500.0,0.0001456,2]
[404585672,1770315179575,500.0,0.0001456,2]
[404585673,1770315179624,350.0,0.0001456,2]
[404585674,1770315179744,500.0,0.0001456,2]
[404585675,1770315181206,300.0,0.0001456,2]
[404585676,1770315183087,883.14463657,0.00014462,2]
[404585678,1770315183529,177.3480664,0.00014462,2]
[404585684,1770315188812,550.18819929,7.945e-05,2]
[404585685,1770315188835,5000.01,7.945e-05,2]
[404585686,1770315188859,6680.67443471,7.945e-05,2]
[404585687,1770315188903,151.0,0.00014558,2]
[404585688,1770315190182,1000.0,0.0001456,2]
[404585689,1770315193405,1600.0,0.000222,120]
[404585690,1770315198421,500.0,0.0001456,2]
[404585691,1770315198471,232.28824335,0.0001456,2]
[404585692,1770315208079,229.60047835,0.00014461,2]
[404585694,1770315214263,500.0,0.0001456,2]
[404585695,1770315214313,232.28824335,0.0001456,2]
[404585697,1770315247276,179.33,0.000145,2]
[404585698,1770315247765,294.82860024,0.0001456,2]
[404585699,1770315247790,205.17139976,0.0001456,2]
[404585700,1770315247822,232.28824335,0.0001456,2]
[404585701,1770315247863,267.6807,0.00014462,2]
[404585702,1770315251318,702.15772866,0.00014461,2]
[404585703,1770315273991,500.0,0.0001456,2]
[404585704,1770315274043,232.28824335,0.0001456,2]
[404585705,1770315275254,7860.42368488,0.00014488,2]
[404585706,1770315275278,4757.71707212,0.00014488,2]
[404585707,1770315286022,203.493,0.00014461,2]
[404585708,1770315290664,38.79992788,0.00014461,2]
[404585709,1770315290687,218.89601597,0.00014461,2]
[404585710,1770315301140,1200.0,0.0001456,2]
[404585711,1770315301174,300.0,0.0001456,2]
[404585712,1770315301527,150.0,0.0001456,2]
[404585714,1770315303716,300.0,0.0001456,2]
[404585726,1770315305313,500.0,0.0001456,2]
[404585727,1770315305353,232.28824335,0.0001456,2]
[404585728,1770315309187,151.0,0.00014558,2]
[404585744,1770315334820,1947.82574068,0.00014461,2]
[404585745,1770315334841,930.46230716,0.00014461,2]
[404585746,1770315336815,500.0,0.0001456,2]
[404585747,1770315336862,232.28824335,0.0001456,2]
[404585748,1770315354461,227.1248353,0.00014461,2]
[404585749,1770315361233,300.0,0.0001456,2]
[404585753,1770315368323,500.0,0.0001456,2]
[404585754,1770315368362,232.28824335,0.0001456,2]
[404585755,1770315399419,500.0,0.0001456,2]
[404585756,1770315399470,232.28824335,0.0001456,2]
[404585757,1770315410055,183.43849591,0.00014461,2]
[404585767,1770315430742,500.0,0.0001456,2]
[404585768,1770315430792,232.28824335,0.0001456,2]
[404585769,1770315434212,151.0,0.00014558,2]
[404585770,1770315440517,151.0,0.00014552,2]
[404585771,1770315441165,152.21834869,0.00014552,2]
[404585772,1770315442124,200.0,0.00014552,2]
[404585773,1770315443120,500.0,0.00014552,2]
[404585774,1770315462085,500.0,0.0001456,2]
[404585775,1770315462136,232.28824335,0.0001456,2]
[404585776,1770315475778,200.0,0.00014552,2]
[404585788,1770315493423,6.0753467,0.0001456,2]
[404585789,1770315493446,493.9246533,0.0001456,2]
[404585790,1770315493486,232.28824335,0.0001456,2]
[404585791,1770315508419,-340.0,0.00022243,120]
[404585792,1770315508453,-360.0,0.00022243,120]
[404585796,1770315585652,4273.79710335,0.00014461,2]
[404585797,1770315585675,5000.01,0.00014461,2]
[404585798,1770315585697,5000.01,0.00014461,2]
[404585799,1770315585721,10000.01,0.00014461,2]
[404585800,1770315585743,5000.01,0.00014461,2]
[404585801,1770315585775,1448548.37147209,0.00014461,2]
[404585802,1770315601789,-1200.0,0.0001446,2]
[404585803,1770315601832,-961.64640995,0.00014461,2]
[404585804,1770315601941,-5000.01,0.00014461,2]
[404585806,1770315602169,-5000.01,0.00014461,2]
[404585816,1770315604790,-5000.01,0.00014461,2]
[404585820,1770315611868,-5000.01,0.00014461,2]
[404585821,1770315614935,-5000.01,0.00014461,2]
[404585822,1770315617942,-5000.01,0.00014461,2]
[404585823,1770315621168,-5000.01,0.00014461,2]
[404585824,1770315624046,-5000.01,0.00014461,2]
[404585825,1770315627451,-5000.01,0.00014461,2]
[404585826,1770315630143,-5000.01,0.00014461,2]
[404585827,1770315636244,-5000.01,0.00014461,2]
[404585828,1770315642366,-631.94195574,0.00014361,2]
[404585829,1770315642394,-183.4384959,0.00014361,2]
[404585830,1770315642459,-3369.24909672,0.00014461,2]
[404585831,1770315648514,-5000.01,0.00014461,2]
[404585884,1770315880691,1042.0,0.00013783,2]
[404585902,1770315960806,8931.21847903,8e-05,2]
[404585907,1770315994127,-241.36262219,0.00014071,2]
[404585911,1770316027285,1000.0,0.000136,4]
[404585912,1770316029371,2100.0,0.000137,5]
[404585914,1770316031470,1872.24481569,0.000138,5]
[404585915,1770316031493,1327.75518431,0.000138,5]
[404585917,1770316033568,4200.0,0.000139,5]
[404585927,1770316060393,-3823.75189055,0.00014071,2]
[404585942,1770316105917,-1264.71232027,0.00014121,2]
[404585943,1770316105947,-300.0,0.0001417,2]
[404585944,1770316105976,-300.0,0.0001417,2]
[404585945,1770316106012,-1200.0,0.00014171,2]
[404585946,1770316106059,-1200.0,0.00014171,2]
[404585947,1770316106090,-250.0,0.00014172,2]
[404585948,1770316106319,-4763.481,0.00014172,2]
[404585949,1770316106363,-473.048,0.00014172,2]
[404585950,1770316106399,-486.32,0.00014172,2]
[404585951,1770316106434,-568.74776022,0.00014261,2]
[404585952,1770316106464,-929.69851072,0.00014261,2]
[404585953,1770316106663,-4915.62854188,0.00014261,2]
[404585958,1770316110174,-168.75291624,0.00014261,2]
[404585959,1770316110214,-2003.70869859,0.00014261,2]
[404585960,1770316110248,-189.27069605,0.00014261,2]
[404585961,1770316110278,-92.54537824,0.00014274,2]
[404585962,1770316110432,-4908.55537824,0.00014274,2]
[404585963,1770316110467,-182.89924352,0.00014274,2]
[404585964,1770316110497,-256.53145144,0.00014312,2]
[404585965,1770316110527,-151.0,0.00014357,2]
[404585966,1770316110561,-500.0,0.00014359,2]
[404585967,1770316110593,-635.38260247,0.00014359,2]
[404585968,1770316110630,-500.0,0.00014359,2]
[404585969,1770316110666,-500.0,0.00014359,2]
[404585970,1770316110698,-500.0,0.00014359,2]
[404585971,1770316110730,-500.0,0.00014359,2]
[404585972,1770316110762,-500.0,0.00014359,2]
[404585973,1770316111095,-500.0,0.00014359,2]
[404585974,1770316111136,-218.97391166,0.00014359,2]
[404585975,1770316111309,-500.0,0.00014359,2]
[404585976,1770316111339,-150.0,0.00014359,2]
[404585977,1770316111784,-1850.33870189,0.0001436,2]
[404585978,1770316111816,-10000.01,0.0001436,2]
[404585980,1770316112804,-500.0,0.00014359,2]
[404585981,1770316112837,-218.97391166,0.00014359,2]
[404585982,1770316112892,-8562.06217668,0.0001436,2]
[404585983,1770316112921,-10000.01,0.0001436,2]
[404585984,1770316113022,-10000.01,0.0001436,2]
[404585985,1770316113319,-10000.01,0.0001436,2]
[404585986,1770316113440,-10000.01,0.0001436,2]
[404585991,1770316115846,-10000.01,0.0001436,2]
[404585992,1770316115947,-10000.01,0.0001436,2]
[404585994,1770316116070,-10000.01,0.0001436,2]
[404585996,1770316116203,-10000.01,0.0001436,2]
[404586026,1770316179886,500.0,0.00013971,2]
[404586027,1770316199837,-222.57930093,0.00014261,2]
[404586028,1770316199864,-496.57502298,0.00014261,2]
[404586029,1770316199891,-157.72558005,0.00014261,2]
[404586034,1770316202796,1335.80579906,0.0001426,2]
[404586037,1770316207407,175.25606516,0.00014259,2]
[404586038,1770316207931,6735.18832786,0.00014072,2]
[404586039,1770316207958,10000.01,0.00014072,2]
[404586040,1770316207984,10000.01,0.00014072,2]
[404586041,1770316208009,10000.01,0.00014072,2]
[404586042,1770316208035,10000.01,0.00014072,2]
[404586051,1770316232115,-81776.57423965,0.00014072,2]
[404586052,1770316232131,-27259.96778621,0.00014072,2]
[404586053,1770316232143,-36731.72188988,0.00014072,2]
[404586054,1770316232156,-1254.41808677,0.00014072,2]
[404586055,1770316232168,-2738.37873719,0.00014072,2]
[404586056,1770316232196,-14410.95337077,0.00014072,2]
[404586057,1770316232252,-3747.7,0.00014072,2]
[404586058,1770316232265,-560.27256691,0.00014072,2]
[404586059,1770316232317,-3324.63417338,0.00014072,2]
[404586060,1770316232331,-2296.03368761,0.00014072,2]
[404586062,1770316232360,-2205.16219086,0.00014072,2]
[404586113,1770316238089,-675.82434303,0.00014072,2]
[404586114,1770316238100,-262.50000015,0.00014072,2]
[404586115,1770316238211,-13380.60546218,0.00014072,2]
[404586116,1770316238260,-375000.0000001,0.00014072,2]
[404586117,1770316238274,-660.49,0.00014072,2]
[404586118,1770316238315,-141000.0,0.00014072,2]
[404586119,1770316238328,-18750.0,0.00014072,2]
[404586312,1770316240165,-13164.2,0.00014072,2]
[404586328,1770316240280,-446.61713757,0.00014072,2]
[404586331,1770316240291,-335.50794268,0.00014072,2]
[404586333,1770316240303,-343961.35577161,0.00014072,2]
[404586347,1770316240448,-1303.67150037,0.00014072,2]
[404586353,1770316240495,-507.19731291,0.00014072,2]
[404586355,1770316240508,-3750.0,0.00014072,2]
[404586358,1770316240527,-986.0,0.00014072,2]
[404586359,1770316240538,-820621.76147231,0.00014072,2]
[404586361,1770316240548,-175.25606516,0.0001426,2]
[404586364,1770316240562,-161.0,0.00014261,2]
[404586366,1770316240572,-250.0,0.0001431,2]
[404586368,1770316240583,-268.0,0.0001431,2]
[404586370,1770316240597,-300.0,0.00014358,2]
[404586372,1770316240608,-1200.0,0.00014358,2]
[404586374,1770316240619,-1024.86760112,0.00014359,2]
[404586376,1770316240631,-345.91474539,0.00014359,2]
[404586379,1770316240648,-1522.64795301,0.00014359,2]
[404586381,1770316240663,-1338.10693468,0.00014359,2]
[404586383,1770316240674,-2500.0,0.00014361,2]
[404586385,1770316240685,-179.33,0.000144,2]
[404586387,1770316240695,-200.0,0.00014452,2]
[404586390,1770316240709,-200.0,0.00014452,2]
[404586392,1770316240719,-6484.12,0.0001446,2]
[404586393,1770316240729,-999.99,0.0001446,2]
[404586396,1770316240744,-509.94,0.0001446,2]
[404586398,1770316240752,-377.43,0.0001446,2]
[404586400,1770316240764,-573.16998786,0.0001446,2]
[404586402,1770316240775,-377.356311,0.0001446,2]
[404586404,1770316240785,-318.77517234,0.0001446,2]
[404586406,1770316240795,-630.60697298,0.0001446,2]
[404586407,1770316240804,-8568.72,0.00014539,2]
[404586410,1770316240814,-627.41495303,0.00014559,2]
[404586412,1770316240823,-1175.63,0.00014573,2]
[404586414,1770316240832,-535.18,0.00014592,2]
[404586416,1770316240841,-500.0,0.000146,2]
[404586417,1770316240851,-500.0,0.000146,2]
[404586420,1770316240860,-568.74776014,0.00014665,2]
[404586421,1770316240869,-377.43,0.00014734,2]
[404586431,1770316241028,-38014.17221178,0.00014736,2]
[404586435,1770316241087,-666.0,0.00014739,2]
[404586438,1770316241098,-209.0,0.00014739,2]
[404586440,1770316241107,-289.0,0.00014837,2]
[404586442,1770316241116,-3240.0,0.00014844,2]
[404586444,1770316241126,-2021.44,0.00014851,2]
[404586446,1770316241134,-500.0,0.00014869,2]
[404586447,1770316241144,-12802.45,0.00014869,2]
[404586449,1770316241154,-358.0,0.00014907,2]
[404586451,1770316241164,-451.36197851,0.00014961,2]
[404586453,1770316241173,-20598.28252817,0.0001499,2]
[404586455,1770316241182,-250.0,0.00015,2]
[404586458,1770316241192,-377.43,0.00015008,2]
[404586460,1770316241204,-6014.0799688,0.00015037,2]
[404586462,1770316241213,-166.66,0.00015043,2]
[404586464,1770316241222,-810.0,0.00015055,2]
[404586466,1770316241231,-430.0,0.00015055,2]
[404586468,1770316241240,-568.74776014,0.0001507,2]
[404586470,1770316241250,-1000.0,0.00015148,2]
[404586472,1770316241259,-608.80788327,0.00015219,2]
[404586474,1770316241270,-377.43,0.00015282,2]
[404586476,1770316241280,-535.18,0.00015321,2]
[404586478,1770316241289,-1386.37,0.00015352,2]
[404586480,1770316241299,-166.66,0.0001536,2]
[404586482,1770316241309,-456.0,0.00015369,2]
[404586484,1770316241318,-568.74776014,0.00015474,2]
[404586486,1770316241328,-307.70460029,0.00015478,2]
[404586488,1770316241340,-2500.0,0.00015478,2]
[404586490,1770316241350,-250.0,0.00015479,2]
[404586492,1770316241359,-200.0,0.00015547,2]
[404586494,1770316241368,-377.43,0.00015556,2]
[404586496,1770316241378,-160.2005984,0.00015608,2]
[404586498,1770316241388,-166.66,0.00015677,2]
[404586500,1770316241399,-250.0,0.00015687,2]
[404586502,1770316241409,-200.0,0.00015705,2]
[404586504,1770316241419,-420.0,0.00015724,2]
[404586506,1770316241429,-631.73,0.00015735,2]
[404586508,1770316241438,-500.0,0.00015738,2]
[404586510,1770316241447,-160.0,0.00015778,2]
[404586512,1770316241457,-801.0,0.00015794,2]
[404586515,1770316241467,-2046.60264728,0.00015807,2]
[404586517,1770316241476,-161.0,0.00015809,3]
[404586519,1770316241486,-6014.0799688,0.00015812,2]
[404586521,1770316241495,-377.43,0.0001583,2]
[404586523,1770316241505,-568.74776014,0.00015878,2]
[404586524,1770316241513,-152.01739561,0.00015881,2]
[404586526,1770316241523,-166.66,0.00015994,2]
[404586528,1770316241532,-2408.0,0.00016,2]
[404586531,1770316241542,-957.19260386,0.00016,2]
[404586533,1770316241551,-320.47368523,0.00016,2]
[404586534,1770316241560,-5956.53345956,0.00016,2]
[404586537,1770316241570,-606.0,0.00016,2]
[404586538,1770316241579,-150.0,0.00016036,2]
[404586541,1770316241589,-150.0,0.00016036,2]
[404586543,1770316241599,-150.0,0.00016036,2]
[404586545,1770316241609,-150.0,0.00016036,2]
[404586547,1770316241619,-500.0,0.00016036,2]
[404586549,1770316241629,-500.0,0.00016036,2]
[404586551,1770316241638,-150.0,0.00016036,2]
[404586553,1770316241654,-150.0,0.00016036,2]
[404586555,1770316241664,-192.17460847,0.00016036,2]
[404586557,1770316241673,-500.0,0.00016036,2]
[404586559,1770316241682,-150.0,0.00016036,2]
[404586561,1770316241691,-241.64782027,0.00016036,2]
[404586563,1770316241700,-500.0,0.00016036,2]
[404586565,1770316241711,-12883.34,0.00016037,2]
[404586567,1770316241720,-500.0,0.00016045,2]
[404586569,1770316241729,-535.18,0.00016051,2]
[404586571,1770316241739,-322.6107,0.00016081,2]
[404586573,1770316241748,-721.12765535,0.00016081,2]
[404586575,1770316241757,-2000.0,0.00016081,2]
[404586577,1770316241767,-174.61919141,0.00016081,2]
[404586579,1770316241776,-578.20924308,0.00016081,2]
[404586581,1770316241785,-209.40437684,0.00016081,2]
[404586583,1770316241794,-150.0,0.00016091,2]
[404586585,1770316241803,-150.0,0.00016091,2]
[404586587,1770316241813,-150.0,0.00016091,2]
[404586589,1770316241823,-150.0,0.00016091,2]
[404586591,1770316241832,-502.74294871,0.00016091,2]
[404586593,1770316241841,-501.95201777,0.00016091,2]
[404586595,1770316241851,-200.2113618,0.00016091,2]
[404586597,1770316241859,-150.0,0.00016091,2]
[404586599,1770316241868,-500.0,0.00016091,2]
[404586601,1770316241877,-150.0,0.00016091,2]
[404586603,1770316241887,-500.0,0.00016091,2]
[404586605,1770316241900,-377.43,0.00016104,2]
[404586607,1770316241910,-1876.27,0.0001611,2]
[404586609,1770316241919,-217.15233878,0.00016136,2]
[404586611,1770316241929,-150.0,0.00016146,2]
[404586613,1770316241938,-200.33165564,0.00016146,2]
[404586615,1770316241948,-150.0,0.00016146,2]
[404586617,1770316241957,-150.0,0.00016146,2]
[404586619,1770316241966,-150.0,0.00016146,2]
[404586621,1770316241975,-582.0,0.00016146,2]
[404586623,1770316241985,-150.0,0.00016146,2]
[404586625,1770316241994,-481.18508703,0.00016146,2]
[404586627,1770316242003,-225.18697532,0.00016191,2]
[404586629,1770316242012,-150.0,0.000162,2]
[404586631,1770316242022,-150.21207895,0.00016216,2]
[404586633,1770316242031,-194.03688759,0.00016216,2]
[404586635,1770316242040,-150.0,0.00016216,2]
[404586637,1770316242049,-188.91311241,0.00016216,2]
[404586639,1770316242059,-150.0,0.00016216,2]
[404586641,1770316242068,-150.42668535,0.00016216,2]
[404586643,1770316242077,-150.0,0.00016216,2]
[404586645,1770316242087,-150.0,0.00016216,2]
[404586647,1770316242095,-150.0,0.00016216,2]
[404586649,1770316242104,-150.0,0.00016216,2]
[404586650,1770316242113,-292.33944889,0.00016216,2]
[404586652,1770316242123,-150.0,0.00016216,2]
[404586655,1770316242132,-500.0,0.00016216,2]
[404586657,1770316242142,-150.0,0.00016216,2]
[404586659,1770316242153,-500.0,0.00016216,2]
[404586660,1770316242162,-500.0,0.00016216,2]
[404586662,1770316242171,-150.0,0.00016216,2]
[404586664,1770316242181,-150.0,0.00016216,2]
[404586666,1770316242191,-151.98337162,0.00016216,2]
[404586669,1770316242200,-150.0,0.00016216,2]
[404586670,1770316242210,-150.0,0.00016216,2]
[404586672,1770316242220,-500.0,0.00016216,2]
[404586675,1770316242232,-233.51889341,0.00016246,2]
[404586677,1770316242242,-150.0,0.00016271,2]
[404586678,1770316242253,-500.0,0.00016271,2]
[404586680,1770316242263,-500.0,0.00016271,2]
[404586683,1770316242273,-500.0,0.00016271,2]
[404586685,1770316242282,-150.87713619,0.00016271,2]
[404586686,1770316242292,-150.0,0.00016271,2]
[404586689,1770316242302,-150.21709555,0.00016271,2]
[404586690,1770316242310,-613.72923299,0.00016271,2]
[404586693,1770316242320,-208.08041389,0.00016271,2]
[404586694,1770316242330,-568.74776014,0.00016283,2]
[404586696,1770316242339,-242.15909246,0.00016301,2]
[404586699,1770316242349,-166.66,0.0001631,2]
[404586701,1770316242358,-200.71145025,0.00016326,2]
[404586703,1770316242367,-500.0,0.00016326,2]
[404586704,1770316242376,-500.0,0.00016326,2]
[404586706,1770316242386,-500.0,0.00016326,2]
[404586708,1770316242400,-251.11897888,0.00016356,2]
[404586711,1770316242410,-377.43,0.00016378,2]
[404586713,1770316242419,-260.4103811,0.00016411,2]
[404586715,1770316242429,-500.0,0.00016438,2]
[404586717,1770316242439,-500.0,0.00016438,2]
[404586719,1770316242449,-500.0,0.00016438,2]
[404586721,1770316242458,-500.0,0.00016438,2]
[404586723,1770316242467,-500.0,0.00016438,2]
[404586725,1770316242477,-500.0,0.00016438,2]
[404586727,1770316242487,-500.0,0.00016438,2]
[404586729,1770316242496,-500.0,0.00016438,2]
[404586731,1770316242506,-500.0,0.00016438,2]
[404586733,1770316242515,-500.0,0.00016438,2]
[404586735,1770316242524,-500.0,0.00016438,2]
[404586737,1770316242533,-500.0,0.00016438,2]
[404586739,1770316242543,-500.0,0.00016438,2]
[404586741,1770316242552,-500.0,0.00016438,2]
[404586743,1770316242561,-500.0,0.00016438,2]
[404586745,1770316242570,-500.0,0.00016438,2]
[404586747,1770316242579,-500.0,0.00016438,2]
[404586749,1770316242588,-450.0,0.00016438,2]
[404586751,1770316242597,-500.0,0.00016438,2]
[404586753,1770316242606,-270.0455652,0.00016466,2]
[404586755,1770316242616,-280.03725112,0.00016521,2]
[404586757,1770316242624,-449.406372,0.00016537,7]
[404586759,1770316242634,-290.39862941,0.00016576,2]
[404586761,1770316242647,-6014.0799688,0.00016588,2]
[404586763,1770316242656,-5530.0,0.000166,3]
[404586765,1770316242666,-166.66,0.00016627,2]
[404586767,1770316242677,-2000.0,0.00016629,2]
[404586770,1770316242687,-181.08010149,0.00016629,2]
[404586772,1770316242696,-301.1433787,0.00016631,2]
[404586773,1770316242706,-377.43,0.00016652,2]
[404586776,1770316242715,-341.90849198,0.00016672,2]
[404586777,1770316242724,-568.74776014,0.00016687,2]
[404586779,1770316242734,-362.1536654,0.00016703,2]
[404586782,1770316242743,-160.2005984,0.00016754,2]
[404586783,1770316242752,-535.18,0.00016781,2]
[404586785,1770316242762,-5530.0,0.000169,5]
[404586788,1770316242771,-377.43,0.00016925,2]
[404586790,1770316242781,-1000.0,0.00016986,2]
[404586792,1770316242790,-300.0,0.00017,2]
[404586794,1770316242800,-337139.92423025,0.00017,2]
[404586795,1770316242809,-160.0,0.00017,2]
[404586798,1770316242819,-568.74776014,0.00017091,2]
[404586800,1770316242829,-643.0,0.00017174,2]
[404586802,1770316242838,-2000.0,0.00017177,2]
[404586804,1770316242847,-187.78006525,0.00017177,2]
[404586806,1770316242857,-377.43,0.00017199,2]
[404586808,1770316242866,-4123.3752,0.000172,2]
[404586810,1770316242875,-89306.5331,0.000172,2]
[404586812,1770316242884,-6726.6528,0.000172,2]
[404586814,1770316242898,-587.0,0.00017221,2]
[404586816,1770316242908,-152.0,0.00017225,3]
[404586818,1770316242917,-643.0,0.00017248,2]
[404586822,1770316242926,-1000.0,0.0001726,2]
[404586826,1770316242936,-410.0,0.00017307,2]
[404586829,1770316242945,-274.0,0.0001731,2]
[404586832,1770316242954,-3254.0,0.00017341,2]
[404586835,1770316242964,-1317.0,0.00017341,2]
[404586838,1770316242973,-2466.995,0.00017341,2]
[404586842,1770316242982,-3482.0,0.00017341,2]
[404586846,1770316242991,-410.0,0.00017359,2]
[404586850,1770316243001,-6014.0799688,0.00017364,2]
[404586853,1770316243010,-847.0,0.000174,2]
[404586856,1770316243019,-337.58,0.00017407,2]
[404586859,1770316243028,-334.5472959,0.0001745,2]
[404586862,1770316243037,-377.43,0.00017473,2]
[404586865,1770316243047,-568.74776014,0.00017496,2]
[404586867,1770316243058,-47397.30590922,0.000175,2]
[404586869,1770316243067,-5410.7359995,0.00017503,2]
[404586871,1770316243076,-535.18,0.0001751,2]
[404586873,1770316243086,-1000.0,0.00017534,2]
[404586875,1770316243095,-2762.0,0.00017535,2]
[404586877,1770316243104,-643.0,0.00017549,2]
[404586879,1770316243113,-410.0,0.00017558,2]
[404586881,1770316243122,-378.0,0.00017563,2]
[404586882,1770316243131,-5300.0,0.000176,6]
[404586884,1770316243143,-643.0,0.00017614,2]
[404586887,1770316243156,-643.0,0.00017629,2]
[404586889,1770316243165,-410.0,0.00017635,2]
[404586890,1770316243174,-161.0,0.00017647,3]
[404586892,1770316243183,-410.0,0.00017661,2]
[404586895,1770316243193,-410.0,0.00017662,2]
[404586897,1770316243203,-151.0,0.00017671,2]
[404586898,1770316243212,-151.0,0.00017671,2]
[404586901,1770316243222,-1503.0,0.00017671,2]
[404586903,1770316243231,-159.89228707,0.00017671,2]
[404586905,1770316243240,-151.0,0.00017671,2]
[404586907,1770316243250,-1503.0,0.00017671,2]
[404586909,1770316243259,-151.0,0.00017671,2]
[404586911,1770316243271,-1503.0,0.00017671,2]
[404586912,1770316243280,-151.0,0.00017671,2]
[404586914,1770316243290,-159.15241189,0.00017671,2]
[404586916,1770316243299,-153.0,0.00017671,2]
[404586918,1770316243308,-151.0,0.00017671,2]